Workbook

Sheet Listina
B3: p.č. | C3: jméno, příjmení | D3: kat. | E3: družstva | F3: přihlašující organizace | H3: čas - minuty | I3: čas - sekundy
B4: 1. | C4: Miroslav Michlovský | D4: A | E4: ÚO Kolín A | F4: HZS Středočeského kraje - ÚO Kolín | H4: 00:05:34.500 | I4: =H4*86400 -> 334.5
B5: 2. | C5: Michal Mour | D5: B | E5: ÚO Kladno | F5: HZS Středočeského kraje - ÚO Kladno | H5: 00:05:03.410 | I5: =H5*86400 -> 303.41
B6: 3. | C6: Radek Kladiva | D6: A | E6: ÚO Benešov A | F6: HZS Středočeského kraje - ÚO Benešov | H6: 00:04:16.480 | I6: 256.48
B7: 4. | C7: Vladimír Tajč | D7: A | E7: ÚO Mělník | F7: HZS Středočeského kraje - ÚO Mělník | H7: 00:05:46.390 | I7: 346.39
B8: 5. | C8: Michal Strnad | D8: A | E8: ÚO Mladá Boleslav | F8: HZS Středočeského kraje - ÚO Mladá Boleslav | H8: 00:05:02.220 | I8: 302.22
B9: 6. | C9: Roman Vávra | D9: A | E9: ÚO Nymburk | F9: HZS Středočeského kraje - ÚO Nymburk | H9: 00:06:50.990 | I9: 410.99
B10: 7. | C10: Dušan Plodr | D10: A | E10: ÚO Beroun | F10: HZS Středočeského kraje - ÚO Beroun | H10: 00:04:36.320 | I10: 276.32
B11: 8. | C11: Jan Jeništa | D11: A | E11: ÚO Příbram | F11: HZS Středočeského kraje - ÚO Příbram | H11: 00:05:42.430 | I11: 342.43
B12: 9. | C12: Jan Lahoda | D12: B | E12: ÚO Kutná Hora | F12: HZS Středočeského kraje - ÚO Kutná Hora | H12: 00:06:33.250 | I12: 393.25
B13: 10. | C13: Petr Karpíšek | D13: B | E13: ÚO Kolín B | F13: HZS Středočeského kraje - ÚO Kolín | H13: 00:05:32.670 | I13: 332.67
B14: 11. | C14: David Sysel | D14: A | E14: ÚO Benešov B | F14: HZS Středočeského kraje - ÚO Benešov | H14: 00:05:31.560 | I14: 331.56
B15: 12. | C15: Jiří Eisner | D15: A | F15: HZS Středočeského kraje - ÚO Kladno | H15: 00:07:56.860 | I15: 476.86
B16: 13. | C16: Jiří Dvořák | D16: B (out) | F16: HZS Jihočeského kraje | H16: 00:04:26.340 | I16: =H16*86400 -> 266.34
B17: 14. | C17: Petr Svatek | D17: A (out) | F17: HZS Kraje Vysočina - ÚO Havlíčkův Brod | H17: 00:04:17.200 | I17: 257.2
B18: 15. | C18: Jan Marx | D18: A (out) | F18: HZS Kraje Libereckého kraje - ÚO Jablonec n/N | H18: 00:05:34.230 | I18: 334.23
B19: 16. | C19: Ondřej Pavlík | D19: A (out) | F19: HZS Pardubického kraje - ÚO Pardubice | H19: 00:05:01.620 | I19: 301.62
B20: Přestávka
B21: 17. | C21: Ondřej Rosenkranz | D21: A (out) | F21: HZS Královéhradeckého kraje - ÚO Hradec Králové | H21: 00:03:59.440 | I21: 239.44
B22: 18. | C22: Michal Brousil | D22: A (out) | F22: HZS Jihočeského kraje | H22: 00:04:13.260 | I22: 253.26
B23: 19. | C23: Martin Zapadlo | D23: A | E23: ÚO Kolín A | F23: HZS Středočeského kraje - ÚO Kolín | H23: 00:05:56.250 | I23: 356.25
B24: 20. | C24: Tomáš Macák | D24: A | E24: ÚO Kladno | F24: HZS Středočeského kraje - ÚO Kladno | H24: 00:06:27.980 | I24: 387.98
B25: 21. | C25: Kamil Němec | D25: B | E25: ÚO Benešov A | F25: HZS Středočeského kraje - ÚO Benešov | H25: 00:04:25.490 | I25: 265.49
B26: 22. | C26: Jan Babický | D26: A | E26: ÚO Mělník | F26: HZS Středočeského kraje - ÚO Mělník | H26: 00:05:50.890 | I26: 350.89
B27: 23. | C27: Milan Dudek | D27: B | F27: HZS Středočeského kraje - ÚO Mladá Boleslav | H27: 00:07:06.780 | I27: 426.78
B28: 24. | C28: Radek Najbrt | D28: B | E28: ÚO Nymburk | F28: HZS Středočeského kraje - ÚO Nymburk | H28: 00:06:54.400 | I28: 414.4
B29: 25. | C29: Michal Čepelák | D29: A | E29: ÚO Beroun | F29: HZS Středočeského kraje - ÚO Beroun | H29: 00:05:20.040 | I29: 320.04
B30: 26. | C30: Jan Mora | D30: A | E30: ÚO Příbram | F30: HZS Středočeského kraje - ÚO Příbram | H30: 00:05:07.570 | I30: 307.57
B31: 27. | C31: Petr Klatovský | D31: A | E31: ÚO Kutná Hora | F31: HZS Středočeského kraje - ÚO Kutná Hora | H31: 00:08:35.020 | I31: 515.02
B32: 28. | C32: Petr Vaněk | D32: A | E32: ÚO Kolín B | F32: HZS Středočeského kraje - ÚO Kolín | H32: 00:06:57.040 | I32: 417.04
B33: 29. | C33: Miloš Ježek | D33: A | E33: ÚO Benešov B | F33: HZS Středočeského kraje - ÚO Benešov | H33: 00:05:46.210 | I33: 346.21
B34: 30. | C34: Oldřich Tomáš Staněk | D34: A | E34: ÚO Kolín C | F34: HZS Středočeského kraje - ÚO Kolín | H34: 00:06:55.010 | I34: 415.01
B35: 31. | C35: Ondřej Fišer | D35: A (out) | F35: HZS Jihočeského kraje | H35: 00:04:49.330 | I35: 289.33
B36: 32. | C36: Zdeněk Tvrdý | D36: A (out) | F36: HZS Kraje Vysočina - ÚO Havlíčkův Brod | I36: 0
B37: 33. | C37: Jiří Šilhán | D37: A (out) | F37: HZS Kraje Libereckého kraje - ÚO Jablonec n/N | H37: 00:05:48.250 | I37: 348.25
B38: 34. | C38: Oldřich Šmatera | D38: B (out) | F38: HZS Pardubického kraje - ÚO Pardubice | H38: 00:05:23.130 | I38: 323.13
B39: Přestávka
B40: 35. | C40: Michal Pavel | D40: A (out) | F40: HZS Královéhradeckého kraje - ÚO Hradec Králové | H40: 00:05:50.810 | I40: 350.81
B41: 36. | C41: Oldřich Stehlík | D41: A (out) | F41: HZS Kraje Vysočina - ÚO Havlíčkův Brod | I41: 0
B42: 37. | C42: Lukáš Martínek | D42: A | E42: ÚO Kolín A | F42: HZS Středočeského kraje - ÚO Kolín | H42: 00:05:08.130 | I42: 308.13
B43: 38. | C43: Michal Kratochvíl | D43: A | E43: ÚO Kladno | F43: HZS Středočeského kraje - ÚO Kladno | H43: 00:06:54.020 | I43: 414.02
B44: 39. | C44: Evžen Holan | D44: A | E44: ÚO Benešov A | F44: HZS Středočeského kraje - ÚO Benešov | H44: 00:05:31.540 | I44: 331.54
B45: 40. | C45: Petr Povolný | D45: A | E45: ÚO Mělník | F45: HZS Středočeského kraje - ÚO Mělník | H45: 00:06:51.010 | I45: 411.01
B46: 41. | C46: Petr Holeček | D46: B | E46: ÚO Mladá Boleslav | F46: HZS Středočeského kraje - ÚO Mladá Boleslav | H46: 00:06:44.080 | I46: 404.08
B47: 42. | C47: Michal Šimáček | D47: A | E47: ÚO Nymburk | F47: HZS Středočeského kraje - ÚO Nymburk | H47: 00:07:23.260 | I47: 443.26
B48: 43. | C48: Michal Chlumský | D48: B | E48: ÚO Beroun | F48: HZS Středočeského kraje - ÚO Beroun | H48: 00:05:56.150 | I48: 356.15
B49: 44. | C49: Jakub Hornáček | D49: A | E49: ÚO Příbram | F49: HZS Středočeského kraje - ÚO Příbram | H49: 00:05:19.730 | I49: 319.73
B50: 45. | C50: Miloš Vysloužil | D50: A | E50: ÚO Kutná Hora | F50: HZS Středočeského kraje - ÚO Kutná Hora | H50: 00:05:20.340 | I50: 320.34
B51: 46. | C51: Zdeněk Hejduk | D51: A | E51: ÚO Kolín B | F51: HZS Středočeského kraje - ÚO Kolín | H51: 00:06:40.480 | I51: 400.48
B52: 47. | C52: Pavel Kmošek | D52: B | E52: ÚO Benešov B | F52: HZS Středočeského kraje - ÚO Benešov | H52: 00:06:14.090 | I52: 374.09
B53: 48. | C53: Petr Benda | D53: A (out) | F53: HZS Jihočeského kraje | H53: 00:04:33.100 | I53: 273.1
B54: 49. | C54: Pavel Kubát | D54: A (out) | F54: HZS Kraje Vysočina - ÚO Havlíčkův Brod | I54: 0
B55: 50. | C55: Jiří Komárek | D55: A (out) | F55: HZS Kraje Libereckého kraje - ÚO Jablonec n/N | H55: 00:05:47.160 | I55: 347.16
B56: 51. | C56: Marek Víšek | D56: A (out) | F56: HZS Pardubického kraje - ÚO Pardubice | H56: 00:04:03.850 | I56: 243.85
B57: 52. | C57: Robin Bureš | D57: A (out) | F57: HZS Ústeckého kraje - ÚO Žatec | H57: 00:05:26.710 | I57: 326.71
B58: Přestávka
B59: 53. | C59: Martin Drahota | D59: B | E59: ÚO Kolín C | F59: HZS Středočeského kraje - ÚO Kolín | H59: 00:06:42.380 | I59: 402.38
B60: 54. | C60: Roland Kletečka | D60: A | E60: ÚO Kladno | F60: HZS Středočeského kraje - ÚO Kladno | H60: 00:06:05.290 | I60: 365.29
B61: 55. | C61: Jaroslav Chudoba | D61: A | E61: ÚO Mladá Boleslav | F61: HZS Středočeského kraje - ÚO Mladá Boleslav | H61: 00:06:06.790 | I61: 366.79
B62: 56. | C62: Martin Koblížek | D62: A | E62: ÚO Mělník | F62: HZS Středočeského kraje - ÚO Mělník | H62: 00:08:19.780 | I62: 499.78
B63: 57. | C63: Aleš Zima | D63: A | E63: ÚO Mladá Boleslav | F63: HZS Středočeského kraje - ÚO Mladá Boleslav | H63: 00:07:06.610 | I63: 426.61
B64: 58. | C64: Pavel Beneš | D64: A | E64: ÚO Nymburk | F64: HZS Středočeského kraje - ÚO Nymburk | H64: 00:06:14.280 | I64: 374.28
B65: 59. | C65: Miroslav Hrubec | D65: A | E65: ÚO Beroun | F65: HZS Středočeského kraje - ÚO Beroun | H65: 00:06:42.200 | I65: 402.2
B66: 60. | C66: Jiří Šídlo | D66: A | E66: ÚO Příbram | F66: HZS Středočeského kraje - ÚO Příbram | H66: 00:04:59.890 | I66: 299.89
B67: 61. | C67: Jan Backa | D67: A | E67: ÚO Kutná Hora | F67: HZS Středočeského kraje - ÚO Kutná Hora | H67: 00:05:30.950 | I67: 330.95
B68: 62. | C68: Marcel Tanov | D68: B | E68: ÚO Kolín C | F68: HZS Středočeského kraje - ÚO Kolín | H68: 00:08:02.810 | I68: 482.81
B69: 63. | C69: Luboš Flídr | D69: A (out) | F69: HZS Kraje Vysočina - ÚO Havlíčkův Brod | H69: 00:05:36.390 | I69: =H69*86400 -> 336.39
B70: 64. | C70: Jakub Strika | D70: A (out) | F70: HZS Pardubického kraje - ÚO Pardubice | H70: 00:06:18.560 | I70: =H70*86400 -> 378.56
B71: 65. | C71: Tomáš Borl | D71: A (out) | F71: HZS podniku Synthos Kralupy, a.s. | I71: =H71*86400 -> 0
B72: 66. | C72: Petr Pecka | D72: B (out) | F72: HZS Jihočeského kraje | H72: 00:05:05.860 | I72: =H72*86400 -> 305.86
B73: 67. | I73: =H73*86400 -> 0
B74: 68. | I74: 0
I75: =H75*86400 -> 0
I76: 0
I77: 0
I78: 0
I79: 0

Sheet Kat A
C2: Kategorie A
A4: 1 | C4: Radek Kladiva | E4: =Listina!I6 -> 256.48
A5: 2 | C5: Dušan Plodr | E5: =Listina!I10 -> 276.32
A6: 3 | C6: Jiří Šídlo | E6: =Listina!I66 -> 299.89
A7: 4 | C7: Michal Strnad | E7: =Listina!I8 -> 302.22
A8: 5 | C8: Jan Mora | E8: =Listina!I30 -> 307.57
A9: 6 | C9: Lukáš Martínek | E9: =Listina!I42 -> 308.13
A10: 7 | C10: Jakub Hornáček | E10: =Listina!I49 -> 319.73
A11: 8 | C11: Michal Čepelák | E11: =Listina!I29 -> 320.04
A12: 9 | C12: Miloš Vysloužil | E12: =Listina!I50 -> 320.34
A13: 10 | C13: Jan Backa | E13: =Listina!I67 -> 330.95
A14: 11 | C14: Evžen Holan | E14: =Listina!I44 -> 331.54
A15: 12 | C15: David Sysel | E15: =Listina!I14 -> 331.56
A16: 13 | C16: Miroslav Michlovský | E16: =Listina!I4 -> 334.5
A17: 14 | C17: Jan Jeništa | E17: =Listina!I11 -> 342.43
A18: 15 | C18: Miloš Ježek | E18: =Listina!I33 -> 346.21
A19: 16 | C19: Vladimír Tajč | E19: =Listina!I7 -> 346.39
A20: 17 | C20: Jan Babický | E20: =Listina!I26 -> 350.89
A21: 18 | C21: Martin Zapadlo | E21: =Listina!I23 -> 356.25
A22: 19 | C22: Roland Kletečka | E22: =Listina!I60 -> 365.29
A23: 20 | C23: Jaroslav Chudoba | E23: =Listina!I61 -> 366.79
A24: 21 | C24: Pavel Beneš | E24: =Listina!I64 -> 374.28
A25: 22 | C25: Tomáš Macák | E25: =Listina!I24 -> 387.98
A26: 23 | C26: Zdeněk Hejduk | E26: =Listina!I51 -> 400.48
A27: 24 | C27: Miroslav Hrubec | E27: =Listina!I65 -> 402.2
A28: 25 | C28: Roman Vávra | E28: =Listina!I9 -> 410.99
A29: 26 | C29: Petr Povolný | E29: =Listina!I45 -> 411.01
A30: 27 | C30: Michal Kratochvíl | E30: =Listina!I43 -> 414.02
A31: 28 | C31: Oldřich Tomáš Staněk | E31: =Listina!I34 -> 415.01
A32: 29 | C32: Petr Vaněk | E32: =Listina!I32 -> 417.04
A33: 30 | C33: Aleš Zima | E33: =Listina!I63 -> 426.61
A34: 31 | C34: Michal Šimáček | E34: =Listina!I47 -> 443.26
A35: 32 | C35: Jiří Eisner | E35: =Listina!I15 -> 476.86
A36: 33 | C36: Martin Koblížek | E36: =Listina!I62 -> 499.78
A37: 34 | C37: Petr Klatovský | E37: =Listina!I31 -> 515.02

Sheet Kat B
C2: Kategorie B
A4: 1 | C4: Kamil Němec | E4: =Listina!I25 -> 265.49
A5: 2 | C5: Michal Mour | E5: =Listina!I5 -> 303.41
A6: 3 | C6: Petr Karpíšek | E6: =Listina!I13 -> 332.67
A7: 4 | C7: Michal Chlumský | E7: =Listina!I48 -> 356.15
A8: 5 | C8: Pavel Kmošek | E8: =Listina!I52 -> 374.09
A9: 6 | C9: Jan Lahoda | E9: =Listina!I12 -> 393.25
A10: 7 | C10: Martin Drahota | E10: =Listina!I59 -> 402.38
A11: 8 | C11: Petr Holeček | E11: =Listina!I46 -> 404.08
A12: 9 | C12: Radek Najbrt | E12: =Listina!I28 -> 414.4
A13: 10 | C13: Milan Dudek | E13: =Listina!I27 -> 426.78
A14: 11 | C14: Marcel Tanov | E14: =Listina!I68 -> 482.81

Sheet Družstva
C2: Družstva
D4: Michal Mour | E4: ÚO Kladno | F4: =Listina!I5 -> 303.41
D5: Tomáš Macák | E5: ÚO Kladno | F5: =Listina!I24 -> 387.98
D6: Michal Kratochvíl | E6: ÚO Kladno | F6: =Listina!I43 -> 414.02
C7: =SUM(SMALL(F4:F7,{1,2,3})) -> 1056.68 | D7: Roland Kletečka | E7: ÚO Kladno | F7: =Listina!I60 -> 365.29
D10: Radek Kladiva | E10: ÚO Benešov A | F10: =Listina!I6 -> 256.48
D11: Kamil Němec | E11: ÚO Benešov A | F11: =Listina!I25 -> 265.49
C12: =SUM(SMALL(F10:F13,{1,2,3})) -> 853.51 | D12: Evžen Holan | E12: ÚO Benešov A | F12: =Listina!I44 -> 331.54
D16: Vladimír Tajč | E16: ÚO Mělník | F16: =Listina!I7 -> 346.39
D17: Jan Babický | E17: ÚO Mělník | F17: =Listina!I26 -> 350.89
D18: Petr Povolný | E18: ÚO Mělník | F18: =Listina!I45 -> 411.01
C19: =SUM(SMALL(F16:F19,{1,2,3})) -> 1108.29 | D19: Martin Koblížek | E19: ÚO Mělník | F19: =Listina!I62 -> 499.78
D22: Roman Vávra | E22: ÚO Nymburk | F22: =Listina!I9 -> 410.99
D23: Radek Najbrt | E23: ÚO Nymburk | F23: =Listina!I28 -> 414.4
D24: Michal Šimáček | E24: ÚO Nymburk | F24: =Listina!I47 -> 443.26
C25: =SUM(SMALL(F22:F25,{1,2,3})) -> 1199.67 | D25: Pavel Beneš | E25: ÚO Nymburk | F25: =Listina!I64 -> 374.28
D28: Dušan Plodr | E28: ÚO Beroun | F28: =Listina!I10 -> 276.32
D29: Michal Čepelák | E29: ÚO Beroun | F29: =Listina!I29 -> 320.04
D30: Michal Chlumský | E30: ÚO Beroun | F30: =Listina!I48 -> 356.15
C31: =SUM(SMALL(F28:F31,{1,2,3})) -> 952.51 | D31: Miroslav Hrubec | E31: ÚO Beroun | F31: =Listina!I65 -> 402.2
D34: Jan Jeništa | E34: ÚO Příbram | F34: =Listina!I11 -> 342.43
D35: Jan Mora | E35: ÚO Příbram | F35: =Listina!I30 -> 307.57
D36: Jakub Hornáček | E36: ÚO Příbram | F36: =Listina!I49 -> 319.73
C37: =SUM(SMALL(F34:F37,{1,2,3})) -> 927.19 | D37: Jiří Šídlo | E37: ÚO Příbram | F37: =Listina!I66 -> 299.89
D40: Miroslav Michlovský | E40: ÚO Kolín A | F40: =Listina!I4 -> 334.5
D41: Martin Zapadlo | E41: ÚO Kolín A | F41: =Listina!I23 -> 356.25
C42: =SUM(SMALL(F39:F42,{1,2,3})) -> 998.88 | D42: Lukáš Martínek | E42: ÚO Kolín A | F42: =Listina!I42 -> 308.13
D45: Michal Strnad | E45: ÚO Mladá Boleslav | F45: =Listina!I8 -> 302.22
D46: Jaroslav Chudoba | E46: ÚO Mladá Boleslav | F46: =Listina!I61 -> 366.79
D47: Petr Holeček | E47: ÚO Mladá Boleslav | F47: =Listina!I46 -> 404.08
C48: =SUM(SMALL(F45:F48,{1,2,3})) -> 1073.09 | D48: Aleš Zima | E48: ÚO Mladá Boleslav | F48: =Listina!I63 -> 426.61
D51: Petr Karpíšek | E51: ÚO Kolín B | F51: =Listina!I13 -> 332.67
D52: Petr Vaněk | E52: ÚO Kolín B | F52: =Listina!I32 -> 417.04
C53: =SUM(SMALL(F51:F54,{1,2,3})) -> 1150.19 | D53: Zdeněk Hejduk | E53: ÚO Kolín B | F53: =Listina!I51 -> 400.48
D56: Oldřich Tomáš Staněk | E56: ÚO Kolín C | F56: =Listina!I34 -> 415.01
D57: Martin Drahota | E57: ÚO Kolín C | F57: =Listina!I59 -> 402.38
C58: =SUM(SMALL(F56:F59,{1,2,3})) -> 1300.2 | D58: Marcel Tanov | E58: ÚO Kolín C | F58: =Listina!I68 -> 482.81
D61: David Sysel | E61: ÚO Benešov B | F61: =Listina!I14 -> 331.56
D62: Miloš Ježek | E62: ÚO Benešov B | F62: =Listina!I33 -> 346.21
C63: =SUM(SMALL(F61:F64,{1,2,3})) -> 1051.86 | D63: Pavel Kmošek | E63: ÚO Benešov B | F63: =Listina!I52 -> 374.09
D66: Jan Lahoda | E66: ÚO Kutná Hora | F66: =Listina!I12 -> 393.25
D67: Petr Klatovský | E67: ÚO Kutná Hora | F67: =Listina!I31 -> 515.02
D68: Miloš Vysloužil | E68: ÚO Kutná Hora | F68: =Listina!I50 -> 320.34
C69: =SUM(SMALL(F66:F69,{1,2,3})) -> 1044.54 | D69: Jan Backa | E69: ÚO Kutná Hora | F69: =Listina!I67 -> 330.95
B72: 1. | C72: =SMALL(C7:C69,1) -> 853.51 | E72: =VLOOKUP(C72,C4:F70,3,FALSE)&"" -> ÚO Benešov A
B73: 2. | C73: =SMALL(C7:C69,2) -> 927.19 | E73: =VLOOKUP(C73,C5:F71,3,FALSE)&"" -> ÚO Příbram
B74: 3. | C74: =SMALL(C7:C69,3) -> 952.51 | E74: =VLOOKUP(C74,C6:F71,3,FALSE)&"" -> ÚO Beroun
B75: 4. | C75: =SMALL(C7:C69,4) -> 998.88 | E75: =VLOOKUP(C75,C7:F71,3,FALSE)&"" -> ÚO Kolín A
B76: 5. | C76: =SMALL(C7:C69,5) -> 1044.54 | E76: =VLOOKUP(C76,C7:F71,3,FALSE)&"" -> ÚO Kutná Hora
B77: 6. | C77: =SMALL(C7:C69,6) -> 1051.86 | E77: =VLOOKUP(C77,C6:F71,3,FALSE)&"" -> ÚO Benešov B
B78: 7. | C78: =SMALL(C7:C69,7) -> 1056.68 | E78: =VLOOKUP(C78,C7:F71,3,FALSE)&"" -> ÚO Kladno
B79: 8. | C79: =SMALL(C7:C69,8) -> 1073.09 | E79: =VLOOKUP(C79,C6:F71,3,FALSE)&"" -> ÚO Mladá Boleslav
B80: 9. | C80: =SMALL(C7:C69,9) -> 1108.29 | E80: =VLOOKUP(C80,C7:F71,3,FALSE)&"" -> ÚO Mělník
B81: 10. | C81: =SMALL(C7:C69,10) -> 1150.19 | E81: =VLOOKUP(C81,C7:F71,3,FALSE)&"" -> ÚO Kolín B
B82: 11. | C82: =SMALL(C9:C69,11) -> 1300.2 | E82: =VLOOKUP(C82,C7:F71,3,FALSE)&"" -> ÚO Kolín C

Sheet Kat A out
C2: Kategorie A out
A4: 1 | C4: Ondřej Rosenkranz | E4: =Listina!I21 -> 239.44
A5: 2 | C5: Marek Víšek | E5: =Listina!I56 -> 243.85
A6: 3 | C6: Michal Brousil | E6: =Listina!I22 -> 253.26
A7: 4 | C7: Petr Svatek | E7: =Listina!I17 -> 257.2
A8: 5 | C8: Petr Benda | E8: =Listina!I53 -> 273.1
A9: 6 | C9: Ondřej Fišer | E9: =Listina!I35 -> 289.33
A10: 7 | C10: Ondřej Pavlík | E10: =Listina!I19 -> 301.62
A11: 8 | C11: Robin Bureš | E11: =Listina!I57 -> 326.71
A12: 9 | C12: Jan Marx | E12: =Listina!I18 -> 334.23
A13: 10 | C13: Luboš Flídr | E13: =Listina!I69 -> 336.39
A14: 11 | C14: Jiří Komárek | E14: =Listina!I55 -> 347.16
A15: 12 | C15: Jiří Šilhán | E15: =Listina!I37 -> 348.25
A16: 13 | C16: Michal Pavel | E16: =Listina!I40 -> 350.81
A17: 14 | C17: Jakub Strika | E17: =Listina!I70 -> 378.56

Sheet Kat B out
C2: Kategorie B out
A4: 1 | C4: Jiří Dvořák | E4: =Listina!I16 -> 266.34
A5: 2 | C5: Petr Pecka | E5: =Listina!I72 -> 305.86
A6: 3 | C6: Oldřich Šmatera | E6: =Listina!I38 -> 323.13
